Cogmind - Beta 15 @@@ ROGUE MODE // 2025.06.19 @ 00:34:12 Player: Cracklepappy Result: Self-destructed Performance ------------- Evolutions (5) 2500 Regions Visited (16) 3200 Robots Destroyed (269) 1345 Value Destroyed (10674) 10674 Prototype IDs (35) 700 Alien Tech Used (0) 0 Bonus (4785) 4785 TOTAL SCORE: 23204 Bonus ------- High Alert Combat Kills 444 Follower Combat Kills 1676 Entered Garrisons 400 Used RIF Installer 500 Registered with UFD 300 Met Optimus in HQ 500 Built Enhanced Grunts 300 A7 Reached Mainframe 300 Met R17 at Cetus 500 Friendly Fire -135 Cogmind --------- Core Integrity 888/1000 Matter 91/300 Energy 4/100 System Corruption 18% Temperature Cool (0) Movement Treading (240) Ox1 Location -5/Factory Parts ------- > --- POWER (1) -------- (None) > --- PROPULSION (4) --- Centrium Heavy Treads > --- UTILITY (8) ------ Improved Heat Sink Improved Cooling System Huge Storage Unit Core Analyzer Improved Thermal Shield Improved Hacking Suite Relay Coupler [NC] (7) > --- WEAPON (4) ------- Advanced Variable Charge Gun Advanced Plasma Cannon Mass Driver > --- INVENTORY (25) --- Centrium Heavy Treads Overtuned Huge Scrapsphere Scrap Suit Improved Cryofiber Web Large Matter Pod (0) Authchip [Propulsion] Authchip [Weapon] Relay Coupler [NC] (26) Relay Coupler [NC] (33) 01-MTF's Shockpuncher Overtuned Beamcaster Overtuned Quantum Rifle Overtuned Barrage Gun Overtuned Barrage Gun Enhanced Gauss Cannon Long-range Missile Launcher Improved Remote Datajack Plasma Cutter CPS Tube (2) CPS Tube (2) CPS Tube (2) Peak State ------------ > --- POWER ------------ Quantum Reactor > --- PROPULSION ------- Centrium Heavy Treads Centrium Heavy Treads > --- UTILITY ---------- Improved Heat Sink Advanced Heat Sink Huge Storage Unit Centrium Medium Armor Plating Centrium Medium Armor Plating Centrium Medium Armor Plating > --- WEAPON ----------- Advanced Variable Charge Gun Advanced Variable Charge Gun Advanced KE Penetrator Advanced KE Penetrator > --- INVENTORY -------- Mini Fusion Reactor Centrium Heavy Treads Centrium Heavy Treads Overtuned Huge Scrapsphere Scrap Suit Advanced Energy Well Large Matter Pod 01-MTF's Shockpuncher Overtuned Beamcaster Advanced Variable Charge Gun Advanced Variable Charge Gun Overtuned Quantum Rifle Overtuned Barrage Gun Overtuned Barrage Gun Advanced KE Penetrator Missile Launcher Plasma Cutter CPS Tube CPS Tube CPS Tube Vortex Trap [Rating: 127] Favorites ----------- Power Heavy Ion Engine Engine Heavy Ion Engine Power Core Light Nuclear Core Reactor Quantum Reactor Propulsion Light Treads Treads Light Treads Leg Carbon-fiber Leg Wheel Armored Wheel Hover Unit Cooled Gravmag System Utility Huge Storage Unit Device Advanced Heat Sink Storage Huge Storage Unit Processor Core Analyzer Hackware Improved Hacking Suite Protection Centrium Medium Armor Plating Weapon Improved Assault Rifle Energy Gun Advanced Variable Charge Gun Energy Cannon Beam Cannon Ballistic Gun Improved Assault Rifle Ballistic Cannon Mass Driver Launcher Missile Launcher Special Weapon Plasma Cutter Impact Weapon Hammer Slashing Weapon Scythe Special Melee Weapon Datajack Build | -11 -10 -10 -9 -9 -9 -9 -9 -6 -6 -6 -6 -6 -6 -5 -5 -5 ------- Run | Yrd Mat Min Mat Sto Gar Rec Scr Fac Ext Cet Arc Hub Gar Fac Was Fac Slots Evolved 10 | . . . 2 . . . . 6 . . . . . 2 . . Power . | . . . . . . . . . . . . . . . . . Propulsion 2 | . . . 1 . . . . 1 . . . . . . . . Utility 6 | . . . . . . . . 4 . . . . . 2 . . Weapon 2 | . . . 1 . . . . 1 . . . . . . . . Parts Attached 191 | 8 11 4 12 32 13 2 11 29 25 13 8 6 3 5 1 8 Power 21 | 1 3 . 2 3 . 1 2 2 3 1 . . . 1 . 2 Engine 13 | 1 3 . 2 3 . 1 1 1 1 . . . . . . . Core 5 | . . . . . . . 1 1 2 . . . . . . 1 Reactor 3 | . . . . . . . . . . 1 . . . 1 . 1 Propulsion 45 | 2 . . 3 12 4 1 5 7 8 2 . . 1 . . . Treads 29 | 2 . . 3 11 4 1 1 . 4 2 . . 1 . . . Leg 2 | . . . . . . . 1 1 . . . . . . . . Wheel 13 | . . . . . . . 3 6 4 . . . . . . . Hover 1 | . . . . 1 . . . . . . . . . . . . Flight . | . . . . . . . . . . . . . . . . . Utility 52 | 2 3 1 . 6 3 . 2 8 7 6 5 3 1 2 . 3 Device 33 | 1 2 1 . 3 3 . 1 7 3 2 4 2 . 1 . 3 Storage 5 | 1 1 . . 1 . . . 1 . 1 . . . . . . Processor 2 | . . . . . . . 1 . . . . 1 . . . . Hackware 3 | . . . . . . . . . . . 1 . 1 1 . . Protection 9 | . . . . 2 . . . . 4 3 . . . . . . Artifact . | . . . . . . . . . . . . . . . . . Weapon 73 | 3 5 3 7 11 6 . 2 12 7 4 3 3 1 2 1 3 Energy Gun 14 | 2 . . . 1 . . 1 5 2 2 . 1 . . . . Energy Cannon 15 | . 3 3 4 2 . . . . 1 . . 1 . . . 1 Ballistic Gun 27 | 1 . . 2 5 6 . 1 3 4 2 3 . . . . . Ballistic Cannon 8 | . . . . . . . . 3 . . . 1 . 2 . 2 Launcher 2 | . . . . 1 . . . 1 . . . . . . . . Special Weapon 4 | . 1 . . 1 . . . . . . . . 1 . 1 . Impact Weapon 1 | . 1 . . . . . . . . . . . . . . . Slashing Weapon 1 | . . . . 1 . . . . . . . . . . . . Piercing Weapon . | . . . . . . . . . . . . . . . . . Special Melee Weapon 1 | . . . 1 . . . . . . . . . . . . . Unidentified Prototypes 12 | . . . 1 5 . . . 1 . 4 . 1 . . . . Corrupted Parts 5 | . . . . . . . . . . 4 1 . . . . . System Corruption 30 | . . . . . . . . . . 19 11 . . . . . Parts Lost 33 | . 2 . . 3 3 . . 13 3 2 . . . 1 . 6 Power 5 | . 1 . . . 1 . . 1 . . . . . . . 2 Propulsion 13 | . . . . 2 2 . . 6 2 . . . . . . 1 Utility 7 | . . . . 1 . . . 2 1 1 . . . . . 2 Weapon 8 | . 1 . . . . . . 4 . 1 . . . 1 . 1 Highest Loss Streak 5 | . 1 . . 1 1 . . 5 1 2 . . . 1 . 5 To Critical Strikes . | . . . . . . . . . . . . . . . . . Average Backups 23 | 4 23 24 24 24 24 25 24 20 20 20 18 19 20 20 20 21 Power 1 | . 2 2 1 1 1 1 1 1 1 1 1 1 1 1 1 . Propulsion 5 | 2 4 3 3 7 9 10 8 3 3 3 3 3 2 2 2 2 Utility 5 | . 7 9 8 5 5 5 4 4 3 3 2 3 5 5 6 6 Weapon 7 | . 8 9 9 8 6 7 7 8 8 9 8 7 7 7 7 7 Tool/Special . | . . . . . . . . . . . . . . . . . Unused Backups 87 | . 11 2 25 12 6 . 8 . 1 2 1 1 . . . 18 Power 3 | . 1 . 2 . . . . . . . . . . . . . Propulsion 23 | . 4 1 5 2 2 . 5 . . 1 . . . . . 3 Utility 27 | . 4 . 5 6 3 . 1 . . 1 . . . . . 7 Weapon 28 | . 1 1 13 4 1 . 1 . 1 . 1 . . . . 5 Tool/Special 6 | . 1 . . . . . 1 . . . . 1 . . . 3 Average Slot Usage (%) 92 | . 99 100 99 99 99 97 81 76 95 87 85 85 85 86 87 84 Engine 7 | . 13 14 11 10 10 11 3 4 1 1 . . . . . . Core 1 | . . . . . . . 7 . 4 . . . . . . . Reactor 1 | . . . . . . . . . . 4 6 6 6 5 5 4 Treads 24 | . 27 28 32 32 32 33 25 . 1 9 13 13 13 11 11 11 Wheel 2 | . . . . . . . 7 17 20 5 . . . . . . Device 8 | . 14 14 11 7 2 . . 17 20 18 19 7 3 3 5 6 Storage 9 | . 14 14 11 11 11 11 11 6 6 6 6 6 6 5 5 5 Hackware 1 | . . . . . . . . . . . . 6 9 16 17 12 Protection 7 | . . . . 3 8 11 10 2 10 13 12 16 12 11 11 10 Energy Gun 2 | . . . . . . . . 3 13 12 12 1 . . . 4 Energy Cannon 6 | . 25 28 22 1 . . . 2 . . . . . . . 1 Ballistic Gun 15 | . . . 9 30 29 29 4 8 10 11 13 24 25 18 5 . Slashing Weapon 2 | . . . . . 3 1 11 3 . . . . . . . . Peak Build Rating 127 | 7 9 11 23 41 37 34 40 69 61 127 127 125 118 122 118 120 Average Rating 46 | 5 8 10 19 28 32 32 29 58 56 108 121 121 116 120 116 114 On Entrance 59 | . 7 9 11 23 37 34 26 40 61 60 127 119 118 117 112 118 Naked Turns . | . . . . . . . . . . . . . . . . . Heaviest Build 145 | 11 92 92 100 103 100 100 98 121 124 145 145 145 138 137 135 139 Greatest Support 160 | 40 40 40 60 69 69 60 60 52 52 160 160 160 160 160 160 160 Greatest Overweight (x) 46 | . 4 2 1 2 1 1 2 9 7 5 46 . . . . . Average Overweight (x) 1 | . 1 2 1 1 1 1 1 3 2 . 13 . . . . . Largest Inventory Capacity 25 | 8 25 25 25 25 25 25 25 25 25 25 25 25 25 25 25 25 Average Capacity 24 | 7 23 25 25 25 25 25 25 25 25 25 25 25 25 25 25 25 Most Carried 25 | 8 25 25 25 25 25 25 25 25 25 25 25 25 25 25 25 25 Average Carried 24 | 5 23 24 24 24 24 25 24 24 24 24 24 24 24 24 24 24 Final Capacity 25 | 8 25 25 25 25 25 25 25 25 25 25 25 25 25 25 25 25 Final Carried 25 | 8 25 25 25 25 25 25 25 25 25 25 25 25 25 25 25 24 Class Distribution -------------------- 34% | Mutant 26% | Scavenger-Tank 17% | Gunner 14% | Tank 3% | Scavenger-Mutant Dominant Class ---------------- Mutant | -10/Materials Mutant | -10/Mines Gunner | -9/Materials Gunner | -9/Storage Tank | -9/Garrison Tank | -9/Recycling Mutant | -9/Scraptown Scavenger-Gunner | -6/Factory Scavenger-Tank | -6/Extension Scavenger-Tank | -6/Cetus Scavenger-Tank | -6/Archives Scavenger-Tank | -6/Hub_04(d) Scavenger-Tank | -6/Garrison Scavenger-Tank | -5/Factory Scavenger-Tank | -5/Waste Scavenger-Tank | -5/Factory Resources | -11 -10 -10 -9 -9 -9 -9 -9 -6 -6 -6 -6 -6 -6 -5 -5 -5 ----------- Run | Yrd Mat Min Mat Sto Gar Rec Scr Fac Ext Cet Arc Hub Gar Fac Was Fac Matter Collected 8291 | 288 601 40 265 1022 1393 495 43 949 1157 268 187 508 422 288 . 365 Remotely . | . . . . . . . . . . . . . . . . . Salvage Created 11672 | 98 755 164 1184 1366 1492 758 . 1197 2176 302 435 458 196 564 . 527 Parts 612 | 8 57 6 79 78 85 37 . 47 88 13 23 22 13 31 . 25 Haulers Intercepted 12 | . 2 . 2 6 . . . 1 . . . 1 . . . . Recyclers Shooed 9 | . 1 . . 2 . 2 . 1 1 . . . . 1 . 1 Parts Field Recycled . | . . . . . . . . . . . . . . . . . Retrieved Matter . | . . . . . . . . . . . . . . . . . Parts Self-Destructed . | . . . . . . . . . . . . . . . . . Prevented . | . . . . . . . . . . . . . . . . . Kills | -11 -10 -10 -9 -9 -9 -9 -9 -6 -6 -6 -6 -6 -6 -5 -5 -5 ------- Run | Yrd Mat Min Mat Sto Gar Rec Scr Fac Ext Cet Arc Hub Gar Fac Was Fac Combat Hostiles Destroyed 191 | . 23 4 24 20 31 3 . 17 29 4 2 5 8 9 . 12 Melee 2 | . . . . 1 . . . 1 . . . . . . . . Guns 107 | . 3 . 6 12 31 3 . 9 17 2 2 5 8 7 . 2 Cannons 63 | . 20 4 16 3 . . . 5 7 . . . . 1 . 7 AOE 12 | . . . . 4 . . . 1 3 . . . . 1 . 3 Classes Destroyed 17 | 2 4 . 4 1 2 . . 1 1 . . 1 1 . . . Worker 9 | . . . 2 1 . . . 4 1 . . . . 1 . . Builder 8 | . . . . 1 . . . 1 3 . . . . 2 . 1 Tunneler 3 | 2 . . 1 . . . . . . . . . . . . . Hauler 12 | . 2 . 2 6 . . . 1 . . . 1 . . . . Recycler 20 | 1 . . . 3 . 8 . 2 4 . . . . 1 . 1 Mechanic 2 | . . . 1 1 . . . . . . . . . . . . Operator 12 | . 1 . 1 . . . . . . . 9 1 . . . . Watcher 11 | . . . 3 2 . . . . 2 . . 2 . . . 2 Swarmer 52 | . 11 . 6 4 10 . . 3 6 . . . 5 . . 7 Cutter 2 | . . . . . . . . . . . . . 2 . . . Grunt 73 | . 12 4 14 6 10 . . 10 10 . . 1 1 3 . 2 Brawler 3 | . . . . . 1 . . 1 1 . . . . . . . Duelist 1 | . . . . . . . . 1 . . . . . . . . Sentry 33 | . . . 4 9 3 3 . 1 10 . 2 1 . . . . Specialist 2 | . . . . . . . . . . . . 2 . . . . Hunter 5 | . . . . . . . . . 2 . . . . 2 . 1 Programmer 15 | . . . . . 7 . . 1 . . . 1 . 4 . 2 Cetus Guard 4 | . . . . . . . . . . 4 . . . . . . Guerrilla 1 | . . . . . . . . . 1 . . . . . . . Best Kill Streak 9 | 1 3 2 5 8 5 5 . 9 7 3 2 3 3 4 . 5 Combat Bots Only 7 | . 3 2 5 6 5 2 . 7 7 3 2 2 3 3 . 5 Max Kills in Single Turn 3 | 1 2 1 2 2 2 2 . 2 3 1 1 1 2 3 . 3 Gunslinging 1 | . . . . . 1 . . . . . . . . . . . Exploded 2 | . . . . 1 . . . 1 2 . . . . 1 . 2 Melee 1 | . . . . 1 . . . 1 . . . . . . . . Uniques/NPCs Destroyed 1 | . . . . 1 . . . . . . . . . . . . 01-MTF (-9/Storage) Combat | -11 -10 -10 -9 -9 -9 -9 -9 -6 -6 -6 -6 -6 -6 -5 -5 -5 -------- Run | Yrd Mat Min Mat Sto Gar Rec Scr Fac Ext Cet Arc Hub Gar Fac Was Fac Hostile Shots Fired 1094 | . 86 20 94 73 176 4 . 184 124 41 23 46 29 65 . 129 Missed 299 | . 21 3 17 21 40 3 . 41 41 13 9 16 13 21 . 40 Hits 795 | . 65 17 77 52 136 1 . 143 83 28 14 30 16 44 . 89 Melee 5 | . . . . . . . . 3 . . . . 2 . . . Projectile 790 | . 65 17 77 52 136 1 . 140 83 28 14 30 14 44 . 89 AOE 3 | . . . . . . . . . . . . . 3 . . . Critical Strikes 42 | . 1 1 2 4 8 . . 7 1 8 1 3 2 . . 4 Part Disruptions 3 | . . . . . 1 . . 1 . . . 1 . . . . Damage Taken 12291 | . 579 214 840 841 1721 15 . 2589 951 695 357 684 368 747 . 1690 Core 1167 | . 83 40 81 54 173 . . 358 49 66 48 71 32 36 . 76 Absorbed by Shields 182 | . . . . . . . . . 117 65 . . . . . . Ignored by Resistances 130 | . . . . . . . . . . . . . . . . 130 Regen/Repaired (Parts) 439 | . 67 . 262 110 . . . . . . . . . . . . Core Remaining (%) 49 | 100 . 50 . . . . 23 . . . . . 26 . . . Volleys Fired 595 | 8 61 17 48 81 82 15 . 46 70 19 50 24 26 21 4 23 Largest 4 | 2 2 2 3 3 3 3 . 4 4 2 4 4 4 4 1 4 Hottest 292 | 60 120 120 180 114 69 75 . 292 273 75 230 240 240 147 7 272 Shots Fired 1574 | 16 119 33 144 171 238 49 . 133 221 27 103 93 79 78 4 66 Gun 1117 | 16 6 . 44 113 238 49 . 78 191 19 103 93 79 72 . 16 Cannon 412 | . 112 33 100 26 . . . 51 29 8 . . . 4 . 49 Launcher 10 | . . . . 5 . . . 4 1 . . . . . . . Special 35 | . 1 . . 27 . . . . . . . . . 2 4 1 Kinetic 938 | 8 3 . 44 113 238 49 . 84 86 19 18 89 77 76 . 34 Thermal 587 | 7 113 33 100 53 . . . 39 120 . 85 4 2 . . 31 Explosive 10 | . . . . 5 . . . 4 1 . . . . . . . Electromagnetic 32 | 1 3 . . . . . . 6 14 8 . . . . . . Robot Hit Streak 27 | 4 11 12 16 15 15 10 . 15 27 10 6 25 4 16 7 6 Robot Miss Streak 7 | 2 4 4 4 3 5 3 . 7 5 2 3 4 6 3 . 2 Penetration Max 2 | . . . . . . . . . 2 1 . 1 1 1 . . Secondary Targets 12 | . 1 . . . 4 . . . 1 . 1 1 3 1 . . Max Gunslinging Chain 1 | . 1 . . . 1 . . . 1 . 1 1 1 1 . . Shots Hit Robots 987 | 10 57 21 77 112 178 28 . 109 155 21 59 55 23 46 3 33 Core Hits 484 | 6 25 5 37 61 56 16 . 65 108 7 25 18 10 22 . 23 Critical Kills 16 | . 1 . 1 1 . 1 . 1 1 2 1 3 2 2 . . Critical Parts Destroyed 14 | . . . . . 1 . . . 2 1 1 4 2 3 . . Critical Strikes 42 | . 1 . 1 2 6 1 . 1 5 4 2 7 4 5 . 3 Burn 2 | . . . . . . . . . 2 . . . . . . . Meltdown 3 | . 1 . 1 . . . . . 1 . . . . . . . Destroy 28 | . . . . 1 1 1 . 1 2 4 2 7 4 5 . . Blast 3 | . . . . . . . . . . . . . . . . 3 Sever 6 | . . . . 1 5 . . . . . . . . . . . Melee Attacks 75 | . 2 . . 13 41 . . 19 . . . . . . . . Impact 2 | . 2 . . . . . . . . . . . . . . . Slashing 71 | . . . . 11 41 . . 19 . . . . . . . . Piercing . | . . . . . . . . . . . . . . . . . Sneak Attacks 10 | . . . . 2 . . . 8 . . . . . . . . Combat Hostiles . | . . . . . . . . . . . . . . . . . Follow-up Attacks . | . . . . . . . . . . . . . . . . . Damage Inflicted 25099 | 106 1021 382 1516 2175 3699 515 . 3199 4028 645 1857 1592 682 1941 . 1741 Guns 14807 | 106 40 . 386 1160 2478 509 . 1010 2894 421 1857 1591 682 1317 . 356 Cannons 5608 | . 981 366 1106 204 . . . 988 701 224 . . . 112 . 926 Explosions 2331 | . . . . 552 . . . 380 433 . . . . 507 . 459 Melee 2167 | . . . . 125 1221 . . 821 . . . . . . . . Ramming 80 | . . 16 24 28 . 6 . . . . . 1 . 5 . . Kinetic 11518 | 52 19 . 386 1160 2478 509 . 1135 794 421 298 1535 682 1429 . 620 Thermal 9014 | 54 981 366 1106 310 . . . 657 2756 . 1559 56 . 507 . 662 Explosive 1367 | . . . . 552 . . . 380 135 . . . . . . 300 Electromagnetic 794 | . 21 . . . . . . 206 343 224 . . . . . . Impact . | . . . . . . . . . . . . . . . . . Slashing 2167 | . . . . 125 1221 . . 821 . . . . . . . . Piercing . | . . . . . . . . . . . . . . . . . Entropic 159 | . . . . . . . . . . . . . . . . 159 Highest Corruption 20 | . . . . . 13 13 . 1 1 20 20 5 5 4 15 18 Average Corruption 8 | . . . . . 11 13 . 1 1 16 9 5 5 2 9 15 Corruption Purged 27 | . . . . . . . . 1 . . 26 . . . . . Corruption Blocked . | . . . . . . . . . . . . . . . . . Effects 322 | . . . . . 130 54 . . 9 15 21 35 15 8 6 29 Message Errors 72 | . . . . . 25 12 . . 3 4 4 12 . 2 1 9 Matter Fused 75 | . . . . . 35 11 . . 2 6 1 7 3 2 3 5 Heat Flow Errors 44 | . . . . . 16 8 . . . 1 4 4 5 1 1 4 Energy Discharges 36 | . . . . . 17 5 . . . 2 1 3 4 1 . 3 Parts Rejected 6 | . . . . . 2 . . . 1 . . . . . 1 2 Parts Fused 2 | . . . . . 1 . . . 1 . . . . . . . Data Loss (minor) 37 | . . . . . 16 7 . . 2 . 3 4 1 1 . 3 Data Loss (major) 14 | . . . . . 7 4 . . . 2 1 . . . . . Misfires 15 | . . . . . 6 5 . . . . 1 1 1 . . 1 Alerts 9 | . . . . . 2 1 . . . . . 3 1 1 . 1 Misdirections 2 | . . . . . 1 . . . . . 1 . . . . . Weapon Failures 10 | . . . . . 2 1 . . . . 5 1 . . . 1 Overload Shots 3 | . . . . . . . . . . . . 1 2 . . . Overflow Damage 391 | . 40 11 10 8 31 . . 79 7 . . . . 177 . 28 Projectiles 126 | . 40 11 10 3 . . . 12 2 . . . . 37 . 11 Explosions 167 | . . . . 5 . . . . 5 . . . . 140 . 17 Melee 98 | . . . . . 31 . . 67 . . . . . . . . Knockbacks 29 | . . . 2 . . . . 18 . . . . . 1 . 8 Impact 3 | . . . 2 . . . . . . . . . . 1 . . Kinetic 23 | . . . . . . . . 18 . . . . . . . 5 Secondary 3 | . . . . . . . . . . . . . . . . 3 Self-Inflicted Damage 205 | . . . . 60 . . . . . . . . . . . 145 Shots 2 | . . . . 1 . . . . . . . . . . . 1 Rammed 14 | . . 3 5 3 . 1 . . . . . 1 . 1 . . Targets Rammed 14 | . . 3 5 3 . 1 . . . . . 1 . 1 . . Kicked . | . . . . . . . . . . . . . . . . . Crushed . | . . . . . . . . . . . . . . . . . Highest Temperature 466 | 20 312 322 324 108 272 258 . 466 151 242 235 178 241 178 61 343 Average Temperature 80 | 14 71 154 72 17 70 79 . 207 57 242 92 42 99 51 38 112 Received Heat Transfer 3124 | . 144 135 321 336 237 9 . 1056 325 9 45 129 . 9 . 369 Effects 12 | . 2 3 . . . 1 . 3 . 1 . . . . . 2 Shutdowns 3 | . . 1 . . . . . 2 . . . . . . . . Energy Bleed 2 | . 1 . . . . 1 . . . . . . . . . . Interference 4 | . 1 1 . . . . . 1 . 1 . . . . . . Short Circuit 1 | . . 1 . . . . . . . . . . . . . . Damage (minor) 2 | . . . . . . . . . . . . . . . . 2 Siege Activations . | . . . . . . . . . . . . . . . . . Martial Activations . | . . . . . . . . . . . . . . . . . Shielding Activations . | . . . . . . . . . . . . . . . . . Robots Disrupted . | . . . . . . . . . . . . . . . . . Combat Hostiles . | . . . . . . . . . . . . . . . . . Robots Corrupted 4 | . . . . . . . . 1 1 2 . . . . . . Combat Hostiles 4 | . . . . . . . . 1 1 2 . . . . . . Parts Fried 8 | . . . . . . . . 1 2 4 . . . . . 1 Impact Corruptions 1 | . . . . . . . . . . . . . . . . 1 Robots Melted 5 | . 1 . 2 . . . . . 2 . . . . . . . Combat Hostiles 3 | . . . 2 . . . . . 1 . . . . . . . Parts Melted 36 | . 4 . 4 1 . . . 4 15 . 3 1 . 1 . 3 Heat Transferred 16132 | 125 2072 777 2146 1258 . . . 989 5573 . 1961 74 . 300 . 857 Parts Sabotaged . | . . . . . . . . . . . . . . . . . Parts Stolen . | . . . . . . . . . . . . . . . . . Parts Stripped . | . . . . . . . . . . . . . . . . . Power Chain Reactions 2 | . . . . . . . . . 2 . . . . . . . Alert | -11 -10 -10 -9 -9 -9 -9 -9 -6 -6 -6 -6 -6 -6 -5 -5 -5 ------- Run | Yrd Mat Min Mat Sto Gar Rec Scr Fac Ext Cet Arc Hub Gar Fac Was Fac Maximum Alert Level 5 | . . . 1 1 5 3 . 1 3 1 1 1 2 2 . 1 Low Security (%) 63 | 100 100 100 97 75 11 . . 93 62 . 79 50 47 . 100 71 Level 1 16 | . . . 2 24 11 . . 6 10 100 20 49 27 67 . 28 Level 2 5 | . . . . . 16 . . . 24 . . . 25 32 . . Level 3 7 | . . . . . 12 100 . . 2 . . . . . . . Level 4 2 | . . . . . 21 . . . . . . . . . . . Level 5 3 | . . . . . 25 . . . . . . . . . . . High Security . | . . . . . . . . . . . . . . . . . Max Security . | . . . . . . . . . . . . . . . . . Peak Influence 2276 | 5 181 67 210 254 2276 1024 . 219 712 382 314 367 531 495 151 299 Initial 1024 | . . 67 . 85 1 1024 . . 84 291 124 . 5 278 151 63 Average 274 | 1 41 6 56 83 1021 855 . 83 262 314 81 155 253 348 123 102 Influence Increases 10254 | 15 721 100 746 792 2305 340 . 559 1521 271 308 839 586 444 . 707 Destroy 0b10 Robot/C 4580 | . 460 80 480 380 620 60 . 340 880 160 80 300 320 180 . 240 Destroy 0b10 Robot/NC 455 | 15 15 . 50 70 25 45 . 40 75 10 45 25 . 20 . 20 Destroy Leader 808 | . 114 20 120 136 40 . . 62 104 . . 108 20 40 . 44 Allied During Kill 951 | . . . . . . . . . 304 74 125 316 132 . . . Trap Triggered on 0b10 10 | . . . 10 . . . . . . . . . . . . . Successful Hack 197 | . 37 . 18 31 . 38 . . 25 . . 19 8 21 . . Select Force Hacks 240 | . 60 . . . . 180 . . . . . . . . . . Disable Machine 600 | . 30 . 30 105 90 15 . 15 . 15 45 45 30 75 . 105 Anti-Garrison Action 1700 | . . . . . 1500 . . . . . . . 50 . . 150 Destroy Structure 458 | . 5 . 8 40 30 2 . 27 28 12 13 26 11 108 . 148 Partial Spotted 30 | . . . . 15 . . . . 15 . . . . . . . Lose Combat Pursuer 225 | . . . 30 15 . . . 75 90 . . . 15 . . . Influence Decreases 9793 | 15 548 273 542 994 31 1778 838 386 1173 480 620 831 63 541 343 337 Entered New Map 3390 | . . 106 . 119 1 1252 838 . 89 230 188 . 3 253 283 28 Time Decay 4799 | 15 528 167 412 610 . 526 . 256 574 190 432 502 . 278 60 249 Lost Part 330 | . 20 . . 30 30 . . 130 30 20 . . . 10 . 60 Lost Ally 300 | . . . . . . . . . 180 40 . 20 60 . . . Purge Threat 974 | . . . 130 235 . . . . 300 . . 309 . . . . Squads Dispatched 34 | . 6 . 3 3 . . . 3 4 . . 5 . 5 . 5 Investigation 10 | . 4 . 1 1 . . . . 1 . . . . 3 . . Extermination 7 | . . . . . . . . 2 . . . 3 . 1 . 1 Reinforcement 13 | . 2 . 2 1 . . . 1 3 . . 2 . 1 . 1 Assault 2 | . . . . . . . . . . . . . . . . 2 Garrison 2 | . . . . 1 . . . . . . . . . . . 1 Intercept . | . . . . . . . . . . . . . . . . . Searches Triggered . | . . . . . . . . . . . . . . . . . Construction Impeded 5 | . . . . . . . . . 3 . . . . 1 . 1 Haulers Reinforced 1 | . . . . . . . . 1 . . . . . . . . Active Scanning Responses . | . . . . . . . . . . . . . . . . . Cargo Convoy Interrupts . | . . . . . . . . . . . . . . . . . Stealth | -11 -10 -10 -9 -9 -9 -9 -9 -6 -6 -6 -6 -6 -6 -5 -5 -5 --------- Run | Yrd Mat Min Mat Sto Gar Rec Scr Fac Ext Cet Arc Hub Gar Fac Was Fac Distress Signals 12 | . 2 . 2 3 . . . . 1 2 . 1 . 1 . . Communications Jammed . | . . . . . . . . . . . . . . . . . Distress Signals . | . . . . . . . . . . . . . . . . . Times Spotted 321 | . 46 4 35 26 29 2 . 20 53 11 27 13 14 13 5 23 Peak Tracking Total 7 | . 3 2 7 7 5 1 . 5 6 5 3 4 3 3 3 6 Tactical Retreats 12 | . . . 1 2 . . . 3 4 . . . 1 . 1 . Traps | -11 -10 -10 -9 -9 -9 -9 -9 -6 -6 -6 -6 -6 -6 -5 -5 -5 ------- Run | Yrd Mat Min Mat Sto Gar Rec Scr Fac Ext Cet Arc Hub Gar Fac Was Fac Traps Triggered 22 | . 3 . 1 4 8 . . 1 2 . . . . 1 . 2 Indirectly . | . . . . . . . . . . . . . . . . . Trap Hack Attempts 19 | . . . 18 1 . . . . . . . . . . . . Triggered . | . . . . . . . . . . . . . . . . . Disarmed . | . . . . . . . . . . . . . . . . . Reprogrammed 1 | . . . 1 . . . . . . . . . . . . . Reused 1 | . . . 1 . . . . . . . . . . . . . Traps Extracted . | . . . . . . . . . . . . . . . . . Installed 1 | . . . . . . . . . . . . . . . . 1 Triggered 1 | . . . 1 . . . . . . . . . . . . . Most Traps Carried 4 | . . . . . 4 4 4 1 1 1 1 1 1 1 1 1 Machines | -11 -10 -10 -9 -9 -9 -9 -9 -6 -6 -6 -6 -6 -6 -5 -5 -5 ---------- Run | Yrd Mat Min Mat Sto Gar Rec Scr Fac Ext Cet Arc Hub Gar Fac Was Fac Machines Disabled 51 | . 2 . 2 7 13 1 . 1 2 1 3 3 3 5 . 8 Max in Single Turn 5 | . 1 . 1 2 1 1 . 1 . 1 . 2 1 5 . 5 Garrison Access 1 | . . . . . . . . . . . . . . . . 1 Garrison Relay 6 | . . . . . 5 . . . . . . . 1 . . . Phase Generator 1 | . . . . . 1 . . . . . . . . . . . Energy Cycler 1 | . . . . . . . . . 1 . . . . . . . Machines Repaired . | . . . . . . . . . . . . . . . . . Machines Dismantled 3 | . . . . . 2 . . . . 1 . . . . . . Machines Sabotaged . | . . . . . . . . . . . . . . . . . Overloaded Fab Kills . | . . . . . . . . . . . . . . . . . Hacking | -11 -10 -10 -9 -9 -9 -9 -9 -6 -6 -6 -6 -6 -6 -5 -5 -5 --------- Run | Yrd Mat Min Mat Sto Gar Rec Scr Fac Ext Cet Arc Hub Gar Fac Was Fac Machines Accessed 78 | . 9 . 6 14 2 12 4 2 12 1 . 8 3 4 . 1 Terminals 53 | . 6 . 4 10 2 6 . 1 12 1 . 7 3 1 . . Fabricators 2 | . . . . . . . . . . . . . . 2 . . Repair Stations 5 | . 1 . 1 2 . . . . . . . . . . . 1 Recycling Units 10 | . 2 . . 1 . 6 . . . . . . . 1 . . Scanalyzers 1 | . . . 1 . . . . . . . . . . . . . Garrison Access 3 | . . . . 1 . . . 1 . . . 1 . . . . Total Hacks 191 | . 29 . 17 33 4 26 14 3 26 1 . 22 8 7 . 1 Successful 104 | . 13 . 12 21 1 14 14 1 8 . . 12 2 6 . . Failed 87 | . 16 . 5 12 3 12 . 2 18 1 . 10 6 1 . 1 Catastrophic 24 | . 3 . 2 3 2 3 . 1 6 . . 3 1 . . . Database Lockouts . | . . . . . . . . . . . . . . . . . Manual 71 | . 24 . 6 9 . 9 . . 10 1 . 3 6 3 . . Terminals 137 | . 21 . 10 23 4 19 . 2 26 1 . 21 8 2 . . Fabricators 4 | . . . . . . . . . . . . . . 4 . . Repair Stations 13 | . 3 . 4 5 . . . . . . . . . . . 1 Recycling Units 16 | . 5 . . 3 . 7 . . . . . . . 1 . . Scanalyzers 3 | . . . 3 . . . . . . . . . . . . . Garrison Access 4 | . . . . 2 . . . 1 . . . 1 . . . . Terminal Hacks 66 | . 4 . 5 11 1 8 14 1 8 . . 11 2 1 . . Record 14 | . . . . . . 1 13 . . . . . . . . . Part Schematic 5 | . 1 . . 1 . 3 . . . . . . . . . . Robot Schematic 1 | . 1 . . . . . . . . . . . . . . . Robot Analysis 2 | . . . . . . 2 . . . . . . . . . . Prototype ID Bank 8 | . 2 . 1 1 . 1 . . . . . 3 . . . . Open Door 8 | . . . . 4 . . . 1 3 . . . . . . . Branch Access Points 1 | . . . 1 . . . . . . . . . . . . . Emergency Access Points 3 | . . . . . 1 . . . . . . 1 1 . . . Machine Index 1 | . . . . . . . . . . . . . . 1 . . Garrison Index 1 | . . . . . . . . . . . . 1 . . . . Alert Level 1 | . . . . . . . . . 1 . . . . . . . Unreport Threat 8 | . . . 1 2 . . . . 2 . . 3 . . . . Locate Traps 5 | . . . 1 2 . . . . 1 . . 1 . . . . Hauler Manifests 3 | . . . 1 1 . 1 . . . . . . . . . . Zone Layout 3 | . . . . . . . . . 1 . . 2 . . . . Garrison Registry 1 | . . . . . . . . . . . . . 1 . . . Proto ID Catalog 1 | . . . . . . . 1 . . . . . . . . . Fabricator Hacks 2 | . . . . . . . . . . . . . . 2 . . Network Status 1 | . . . . . . . . . . . . . . 1 . . Load Schematic 1 | . . . . . . . . . . . . . . 1 . . Repair Station Hacks 8 | . . . 4 4 . . . . . . . . . . . . Scan Component 4 | . . . 2 2 . . . . . . . . . . . . Repair 4 | . . . 2 2 . . . . . . . . . . . . Recycling Unit Hacks 1 | . . . . 1 . . . . . . . . . . . . Retrieve Components 1 | . . . . 1 . . . . . . . . . . . . Scanalyzer 2 | . . . 2 . . . . . . . . . . . . . Insert Component 1 | . . . 1 . . . . . . . . . . . . . Analyze 1 | . . . 1 . . . . . . . . . . . . . Garrison Access Hacks 2 | . . . . 1 . . . . . . . 1 . . . . Unlock Access 2 | . . . . 1 . . . . . . . 1 . . . . Unauthorized Hacks 23 | . 9 . 1 4 . 6 . . . . . . . 3 . . Terminals 9 | . 5 . 1 3 . . . . . . . . . . . . Botnet 2 | . . . . 2 . . . . . . . . . . . . Skim 7 | . 5 . 1 1 . . . . . . . . . . . . Fabricators 2 | . . . . . . . . . . . . . . 2 . . Recompile 2 | . . . . . . . . . . . . . . 2 . . Repair Stations 1 | . 1 . . . . . . . . . . . . . . . Patch 1 | . 1 . . . . . . . . . . . . . . . Recycling Units 11 | . 3 . . 1 . 6 . . . . . . . 1 . . Reject 2 | . 1 . . 1 . . . . . . . . . . . . Tunnel 8 | . 2 . . . . 6 . . . . . . . . . . Fedlink 1 | . . . . . . . . . . . . . . 1 . . Scanalyzers . | . . . . . . . . . . . . . . . . . Garrison Access . | . . . . . . . . . . . . . . . . . Data Cores Recovered 1 | . . . . . . . . . . . . 1 . . . . Used . | . . . . . . . . . . . . . . . . . Hacking Detections 58 | . 8 . 4 10 2 6 . 2 12 2 . 8 3 1 . . Full Trace Events 5 | . . . . . 1 3 . . 1 . . . . . . . Feedback Events 1 | . . . . . . . . . 1 . . . . . . . Corruption 1 | . . . . . . . . . 1 . . . . . . . Feedback Blocked . | . . . . . . . . . . . . . . . . . Robot Schematics Acquired 1 | . 1 . . . . . . . . . . . . . . . Robots Built . | . . . . . . . . . . . . . . . . . Authchips . | . . . . . . . . . . . . . . . . . Time . | . . . . . . . . . . . . . . . . . Total Robot Build Rating . | . . . . . . . . . . . . . . . . . Part Schematics Acquired 6 | . 1 . 1 1 . 3 . . . . . . . . . . Parts Built . | . . . . . . . . . . . . . . . . . Authchips . | . . . . . . . . . . . . . . . . . Time . | . . . . . . . . . . . . . . . . . Total Part Build Rating . | . . . . . . . . . . . . . . . . . Parts Repaired 4 | . . . 2 2 . . . . . . . . . . . . Time 135 | . . . 52 83 . . . . . . . . . . . . Parts Recycled . | . . . . . . . . . . . . . . . . . Recycled Matter . | . . . . . . . . . . . . . . . . . Retrieved Matter . | . . . . . . . . . . . . . . . . . Retrieved Components 10 | . . . . 10 . . . . . . . . . . . . Parts Scanalyzed 1 | . . . 1 . . . . . . . . . . . . . Part Schematics Acquired 1 | . . . 1 . . . . . . . . . . . . . Parts Damaged . | . . . . . . . . . . . . . . . . . Bothacking | -11 -10 -10 -9 -9 -9 -9 -9 -6 -6 -6 -6 -6 -6 -5 -5 -5 ------------ Run | Yrd Mat Min Mat Sto Gar Rec Scr Fac Ext Cet Arc Hub Gar Fac Was Fac Used RIF Installer 1 | . . . . . . . . . . . . . 1 . . . Robots Hacked 7 | . . . . 1 . . . . . . . . . 1 4 1 Non-combat 2 | . . . . . . . . . . . . . . 1 . 1 Combat 5 | . . . . 1 . . . . . . . . . . 4 . Robot Hacks Applied 8 | . . . . 2 . . . . . . . . . 1 4 1 parse_system 2 | . . . . 2 . . . . . . . . . . . . block_reporting 2 | . . . . . . . . . . . . . . 1 . 1 ignore_targets 4 | . . . . . . . . . . . . . . . 4 . Relay Couplers Released 36 | . . . . . 23 . . . . . . 4 5 . . 4 Machine Destruction 25 | . . . . . 20 . . . . . . . 5 . . . Programmers 11 | . . . . . 3 . . . . . . 4 . . . 4 Attached 1 | . . . . . . . . . . . . . . 1 . . Fabnet Peak Effective % . | . . . . . . . . . . . . . . . . . Robots Rewired 14 | . . . . . . . . . 14 . . . . . . . Allies Hacked . | . . . . . . . . . . . . . . . . . Hacks Repelled . | . . . . . . . . . . . . . . . . . Allies | -11 -10 -10 -9 -9 -9 -9 -9 -6 -6 -6 -6 -6 -6 -5 -5 -5 -------- Run | Yrd Mat Min Mat Sto Gar Rec Scr Fac Ext Cet Arc Hub Gar Fac Was Fac Total Allies 22 | . . . . . . . . . 17 5 . . . . . . Largest Group 9 | . . . . . . . . . 9 5 5 4 3 . . . Highest-Rated Group 537 | . . . . . . . . . 422 537 537 384 288 . . . Highest-Rated Ally 159 | . . . . . . . . . 159 159 153 96 96 . . . Initial Warlord ECA Mod 26 | . . . . . . 13 13 . . . . . . . . . Total Orders 8 | . . . . . . . . . . . . 8 . . . . STAY 6 | . . . . . . . . . . . . 6 . . . . FOLLOW 2 | . . . . . . . . . . . . 2 . . . . Ally Attacks 250 | . . . . . . . . . 125 30 16 47 32 . . . Total Damage 7833 | . . . . . . . . . 2889 937 693 2118 1196 . . . Kills 50 | . . . . . . . . . 22 7 2 11 8 . . . Allies Corrupted . | . . . . . . . . . . . . . . . . . Allies Melted . | . . . . . . . . . . . . . . . . . Intel | -11 -10 -10 -9 -9 -9 -9 -9 -6 -6 -6 -6 -6 -6 -5 -5 -5 ------- Run | Yrd Mat Min Mat Sto Gar Rec Scr Fac Ext Cet Arc Hub Gar Fac Was Fac Active Infowar (turns) 1316 | 45 218 . . . 688 . 1 53 311 . . . . . . . Sensors 364 | . . . . . . . . 53 311 . . . . . . . Traps 51 | . . . . . 50 . 1 . . . . . . . . . Seismic 901 | 45 218 . . . 638 . . . . . . . . . . . Robot Analysis Total 2 | . . . . . . 2 . . . . . . . . . . Derelict Logs Recovered 2 | . . 2 . . . . . . . . . . . . . . Drone Launches . | . . . . . . . . . . . . . . . . . Drone Recoveries . | . . . . . . . . . . . . . . . . . Exploration | -11 -10 -10 -9 -9 -9 -9 -9 -6 -6 -6 -6 -6 -6 -5 -5 -5 ------------- Run | Yrd Mat Min Mat Sto Gar Rec Scr Fac Ext Cet Arc Hub Gar Fac Was Fac Turns Passed 30216 | 157 3049 1676 1959 4790 3421 1477 4949 816 1750 391 2240 1573 646 619 129 574 Spaces Moved 11267 | 76 853 501 602 1495 1188 596 2431 400 851 181 246 843 337 332 76 259 Core 77 | 5 . . . . . . . . . . 72 . . . . . Treads 9068 | 71 853 501 602 1495 1188 596 1601 . . 140 174 843 337 332 76 259 Legs . | . . . . . . . . . . . . . . . . . Wheels 2122 | . . . . . . . 830 400 851 41 . . . . . . Hover . | . . . . . . . . . . . . . . . . . Flight . | . . . . . . . . . . . . . . . . . Fastest Speed 50 | 50 160 320 240 240 240 240 120 116 117 117 160 160 160 160 160 160 Average Speed 224 | 152 301 320 240 240 240 240 199 137 133 153 798 160 160 160 160 160 Slowest Speed 2350 | 160 480 320 240 320 240 240 320 225 205 165 2350 160 160 160 160 160 Overloaded Moves . | . . . . . . . . . . . . . . . . . Propulsion Burnouts . | . . . . . . . . . . . . . . . . . Robots Hopped 4 | . . . . 4 . . . . . . . . . . . . Potential Cave-ins . | . . . . . . . . . . . . . . . . . Cave-ins Triggered . | . . . . . . . . . . . . . . . . . Exploration Rate (%) 60 | 5 93 95 43 94 96 93 92 10 88 67 82 47 39 12 68 10 Regions Visited 16 Branch Regions 8 Pre-discovered Areas 12 | . 2 1 . 1 . 6 2 . . . . . . . . . Known Exits Taken 5 | . . 1 1 1 . . 1 . . . . 1 . . . . Unknown Exits Taken 7 | 1 1 . . . . 1 . 1 1 1 1 . . . . . Scrap Searched 7 | . . 2 . . . . 5 . . . . . . . . . Spaces Dug 13 | . 3 . . 7 . . . . . . . 1 2 . . . Terrain Destroyed 276 | . 3 . . 38 . . . 28 12 2 15 21 5 79 . 73 Melee 2 | . 2 . . . . . . . . . . . . . . . Projectile 97 | . 1 . . . . . . 2 . 2 15 21 5 26 . 25 AOE 177 | . . . . 38 . . . 26 12 . . . . 53 . 48 Terrain Rammed . | . . . . . . . . . . . . . . . . . Walls Destroyed . | . . . . . . . . . . . . . . . . . Machines Disabled . | . . . . . . . . . . . . . . . . . Actions | -11 -10 -10 -9 -9 -9 -9 -9 -6 -6 -6 -6 -6 -6 -5 -5 -5 --------- Run | Yrd Mat Min Mat Sto Gar Rec Scr Fac Ext Cet Arc Hub Gar Fac Was Fac Total 14795 | 99 1220 539 1023 2512 1478 618 2546 546 1317 254 422 1013 388 372 82 366 Wait 1917 | . 231 4 259 817 53 1 62 25 159 3 109 120 12 3 . 59 Move 11244 | 75 852 500 601 1486 1187 595 2430 399 850 180 245 842 336 332 75 259 Hop 4 | . . . . 4 . . . . . . . . . . . . Pick Up 171 | 8 33 5 36 21 17 . 14 9 6 7 1 4 3 3 1 3 Fast Attach 105 | 7 7 . 3 8 4 . 8 16 14 10 9 5 2 3 1 8 Attach 33 | . 2 1 2 5 3 . 3 7 4 . 1 1 1 2 1 . Detach 5 | . . . . . . . . 1 3 . 1 . . . . . Swap 163 | 1 12 4 12 35 39 3 6 13 14 6 . 4 6 3 . 5 Drop 233 | . 20 5 39 38 20 3 23 11 21 21 6 12 2 4 . 8 Fire 595 | 8 61 17 48 81 82 15 . 46 70 19 50 24 26 21 4 23 Melee 75 | . 2 . . 13 41 . . 19 . . . . . . . . Ram . | . . . . . . . . . . . . . . . . . Kick . | . . . . . . . . . . . . . . . . . Crush 14 | . . 3 5 3 . 1 . . . . . 1 . 1 . . Escape Stasis 22 | . . . . . 14 . . . 8 . . . . . . . Rewire 168 | . . . . . . . . . 168 . . . . . . . Trap 20 | . . . 18 1 . . . . . . . . . . . 1 Miscellaneous 26 | . . . . . 18 . . . . 8 . . . . . . Route ------- -11/Scrapyard -10/Materials (discovered 6 exits: *Mat x3 / [*Min x2] / Sub) -10/Mines (discovered 4 exits: *Mat x2 / [*Exi] / *Sub) -9/Materials (discovered 6 exits: *Mat x2 / *Min x2 / *Sto x2) -9/Storage (discovered 3 exits: *Mat / Rec / Gar) -9/Garrison (discovered 3 exits: *Rec x3) -9/Recycling (discovered 2 exits: [*Fac] / *Scr) -9/Scraptown (discovered 2 exits: *Fac x2) -6/Factory -6/Extension (discovered 3 exits: *Fac x2 / *Cet) -6/Cetus (discovered 2 exits: *Fac / [*Arc]) -6/Archives (discovered 3 exits: *Fac / *Hub x2) -6/Hub_04(d) (discovered 2 exits: *Fac / Gar) -6/Garrison (discovered 3 exits: *Fac x3) -5/Factory -5/Waste -5/Factory History --------- Turn | Location | Event 4 | -11/Scrapyard | Discovered new exit (range 15) 158 | -11/Scrapyard | Entered Materials 316 | -10/Materials | Build established: Mutant 623 | -10/Materials | Discovered new exit (range 12) 774 | -10/Materials | Discovered new exit (range 4) 928 | -10/Materials | Discovered new exit (range 16) 1520 | -10/Materials | Discovered new exit (range 16) 2224 | -10/Materials | Learned 2 Storage zone layouts 2263 | -10/Materials | Loaded intel: 2 recycling unit locations 2293 | -10/Materials | Identified exit to Materials 2293 | -10/Materials | Identified exit to Subcaves 2329 | -10/Materials | Learned Storage emergency access door positions 2385 | -10/Materials | Learned 2 Mines zone layouts 3207 | -10/Materials | Entered Mines 3294 | -10/Mines | Discovered exit to Subcaves (range 10) 3307 | -10/Mines | Learned location of Zion (-6) 3323 | -10/Mines | Received a Rocket Launcher from a helpful Derelict 3478 | -10/Mines | Learned location of 1 exit from Materials 3746 | -10/Mines | Deemed a non-threat by the Exiles lab entrance 3750 | -10/Mines | Discovered new exit (range 5) 3884 | -10/Mines | Discovered exit to Materials (range 6) 4883 | -10/Mines | Entered Materials 4883 | -9/Materials | Evolved 2 slots: Propulsion x1, Weapon x1 4884 | -9/Materials | Identified exit to Materials 5174 | -9/Materials | Build established: Gunner 5235 | -9/Materials | Repaired Lgt. Treads 5262 | -9/Materials | Repaired Lgt. Treads 5615 | -9/Materials | Discovered new exit (range 8) 5831 | -9/Materials | Identified exit to Mines 5831 | -9/Materials | Identified exit to Storage 6469 | -9/Materials | Discovered exit to Materials (range 16) 6842 | -9/Materials | Entered Storage 6843 | -9/Storage | Identified exit to Recycling 6847 | -9/Storage | Build established: Scavenger-Gunner 7160 | -9/Storage | Build established: Gunner 7449 | -9/Storage | Garrison activated, responded to threat 7688 | -9/Storage | Learned location of Armory (-4) 8887 | -9/Storage | Repaired Hvy. Ion Engine 9313 | -9/Storage | Identified exit to Garrison 10106 | -9/Storage | Met 01-MTF 11040 | -9/Storage | Build established: Tank 11241 | -9/Storage | Destroyed 01-MTF 11246 | -9/Storage | Found Prototype Energy Gun 11260 | -9/Storage | Identified 01-MTF's Shockpuncher 11611 | -9/Storage | Repaired Imp. Treads 11632 | -9/Storage | Entered Garrison 11883 | -9/Garrison | Garrison Relay disabled 11995 | -9/Garrison | Triggered checkpoint 12072 | -9/Garrison | Triggered checkpoint 12262 | -9/Garrison | Discovered exit to Recycling (range 10) 12342 | -9/Garrison | Triggered checkpoint 12350 | -9/Garrison | Garrison Relay disabled 12372 | -9/Garrison | System corruption reached 10% 12422 | -9/Garrison | Triggered checkpoint 12455 | -9/Garrison | Core integrity fell below 50% 12641 | -9/Garrison | Triggered checkpoint 12744 | -9/Garrison | Discovered exit to Recycling (range 12) 12835 | -9/Garrison | Triggered checkpoint 13002 | -9/Garrison | Garrison Relay disabled 13239 | -9/Garrison | Discovered exit to Recycling (range 9) 13344 | -9/Garrison | Triggered checkpoint 13442 | -9/Garrison | Phase Generator disabled 13512 | -9/Garrison | Garrison Relay disabled 14954 | -9/Garrison | Garrison Relay disabled 15053 | -9/Garrison | Entered Recycling 16069 | -9/Recycling | Discovered new exit (range 13) 16472 | -9/Recycling | Scanned before Scraplab entrance 16506 | -9/Recycling | Entered Scraplab 16525 | -9/Recycling | Discovered new exit (range 3) 16530 | -9/Recycling | Entered Scraptown 16530 | -9/Scraptown | System corruption cleaned by C-Scrubber 16681 | -9/Scraptown | Build established: Scavenger-Mutant 16878 | -9/Scraptown | Heard Great Nut preacher, LISTEN AND RECITE! 17042 | -9/Scraptown | Discovered new exit (range 7) 17231 | -9/Scraptown | Visited Shadow of the Wyrm 17250 | -9/Scraptown | Visited Red Mages 17426 | -9/Scraptown | Visited Junk Repository 17528 | -9/Scraptown | Visited Artisan Demo Area 17624 | -9/Scraptown | Visited Cyclists 17739 | -9/Scraptown | Visited Assassins FH 17794 | -9/Scraptown | Visited Spacefarers 17804 | -9/Scraptown | Build established: Mutant 18396 | -9/Scraptown | Visited UFD Registry 18425 | -9/Scraptown | Registered with UFD as "Longrider" 18516 | -9/Scraptown | Visited Science Guys 18648 | -9/Scraptown | Visited Abandonware Association 18679 | -9/Scraptown | Learned abandonware demo "ERRANTS.EXE" 18679 | -9/Scraptown | Learned abandonware demo "TRNCOAT.EXE" 18739 | -9/Scraptown | Visited Scrapoid Pod Storage 18773 | -9/Scraptown | Visited Botcube Research 19154 | -9/Scraptown | Visited Scrap Suit Storage 19243 | -9/Scraptown | Received an X-ray algorithm 19258 | -9/Scraptown | Visited Modified Component R&D 19360 | -9/Scraptown | Visited Chapter 10 19444 | -9/Scraptown | Visited LU-1G1's Boring Crew 19824 | -9/Scraptown | Entered Cyclist Reading Room 20232 | -9/Scraptown | Discovered new exit (range 5) 20489 | -9/Scraptown | Found Scrap Suit 20554 | -9/Scraptown | Identified exit to Factory 20830 | -9/Scraptown | Found Scrapoid Pod 21182 | -9/Scraptown | Found Botcube 21419 | -9/Scraptown | Met Optimus 21419 | -9/Scraptown | Accepted into 0bPrime 21479 | -9/Scraptown | Entered Factory 21479 | -6/Factory | Evolved 6 slots: Propulsion x1, Utility x4, Weapon x1 21779 | -6/Factory | Lost 4 parts (2n2w) 22184 | -6/Factory | Destroyed 7 combat bots 22190 | -6/Factory | Lost 5 parts (3n1u1w) 22283 | -6/Factory | Discovered new exit (range 10) 22295 | -6/Factory | Entered Extension 22551 | -6/Extension | Build established: Scavenger-Skirmisher 22673 | -6/Extension | Rescued a captive Derelict 22826 | -6/Extension | Rescued a captive Derelict 22865 | -6/Extension | Energy Cycler disabled 22865 | -6/Extension | Rescued a captive Derelict 22870 | -6/Extension | Rescued a captive Derelict 22872 | -6/Extension | Rescued a captive Derelict 22895 | -6/Extension | Disrupted transfer network 22913 | -6/Extension | Build established: Scavenger-Tank 22925 | -6/Extension | Rescued A7 23494 | -6/Extension | Spotted B-75 Beast 23505 | -6/Extension | Allies destroyed B-75 Beast 23510 | -6/Extension | Spotted B-75 Beast 23526 | -6/Extension | Allies destroyed B-75 Beast 23529 | -6/Extension | Discovered new exit (range 16) 23660 | -6/Extension | Lost 6 allies 23688 | -6/Extension | Destroyed 7 combat bots 24023 | -6/Extension | Discovered new exit (range 10) 24024 | -6/Extension | Discovered new exit (range 6) 24045 | -6/Extension | Entered Cetus 24045 | -6/Cetus | Accompanied by 3 allies (A7) 24050 | -6/Cetus | Acquired a Cetus Manufacturing Module code from A7 24062 | -6/Cetus | Spotted Cetus Guard 24062 | -6/Cetus | Spotted Cetus Guard 24067 | -6/Cetus | Destroyed Cetus Guard 24067 | -6/Cetus | Spotted Cetus Guard 24068 | -6/Cetus | Spotted Cetus Guard 24077 | -6/Cetus | Destroyed Cetus Guard 24082 | -6/Cetus | Allies destroyed Cetus Guard 24086 | -6/Cetus | Core integrity fell below 50% 24094 | -6/Cetus | Destroyed Cetus Guard 24098 | -6/Cetus | Lost 3 allies 24121 | -6/Cetus | System corruption reached 10% 24188 | -6/Cetus | Started Cetus Manufacturing Module 24213 | -6/Cetus | Manufactured an Enhanced Grunt 24228 | -6/Cetus | Escorted A7 to Cetus Mainframe 24238 | -6/Cetus | Manufactured an Enhanced Grunt 24249 | -6/Cetus | Discovered new exit (range 16) 24263 | -6/Cetus | Manufactured an Enhanced Grunt 24276 | -6/Cetus | Spotted Cetus Guard 24277 | -6/Cetus | Spotted Cetus Guard 24278 | -6/Cetus | Spotted Cetus Guard 24280 | -6/Cetus | Spotted Cetus Guard 24288 | -6/Cetus | Manufactured an Enhanced Grunt 24289 | -6/Cetus | Allies destroyed Cetus Guard 24291 | -6/Cetus | Allies destroyed Cetus Guard 24297 | -6/Cetus | Destroyed Cetus Guard 24301 | -6/Cetus | Allies destroyed Cetus Guard 24311 | -6/Cetus | Discovered new exit (range 15) 24313 | -6/Cetus | Manufactured an Enhanced Grunt 24319 | -6/Cetus | Met Revision 17 24436 | -6/Cetus | Entered Archives 24436 | -6/Archives | Accompanied by 5 allies (A7) 24441 | -6/Archives | Received a hacking code to weaken MAIN.C 24637 | -6/Archives | Discovered new exit (range 16) 24806 | -6/Archives | Discovered new exit (range 15) 26655 | -6/Archives | Discovered new exit (range 14) 26676 | -6/Archives | Entered Hub_04(d) 26676 | -6/Hub_04(d) | Accompanied by 4 allies 27284 | -6/Hub_04(d) | Spotted B-75 Beast 27301 | -6/Hub_04(d) | Allies destroyed B-75 Beast 27427 | -6/Hub_04(d) | Identified exit to Garrison 27566 | -6/Hub_04(d) | Discovered new exit (range 5) 28249 | -6/Hub_04(d) | Entered Garrison 28249 | -6/Garrison | Accompanied by 3 allies 28285 | -6/Garrison | Triggered checkpoint 28308 | -6/Garrison | Garrison Relay disabled 28453 | -6/Garrison | Triggered checkpoint 28509 | -6/Garrison | Triggered checkpoint 28618 | -6/Garrison | Triggered checkpoint 28658 | -6/Garrison | Discovered new exit (range 58) 28658 | -6/Garrison | Discovered new exit (range 76) 28658 | -6/Garrison | Discovered new exit (range 10) 28779 | -6/Garrison | Triggered checkpoint 28871 | -6/Garrison | Installed Relay Interface Framework 28895 | -6/Garrison | Entered Factory 28895 | -5/Factory | Evolved 2 slots: Utility x2 29506 | -5/Factory | Loaded intel: 8 recycling unit locations 29514 | -5/Factory | Sucked down chute 29514 | -5/Factory | Entered Waste 29529 | -5/Waste | EMP discharged 29554 | -5/Waste | Spotted C-40 Crusher 29557 | -5/Waste | Spotted C-40 Crusher 29574 | -5/Waste | Spotted C-40 Crusher 29575 | -5/Waste | Spotted C-40 Crusher 29578 | -5/Waste | Spotted C-40 Crusher 29618 | -5/Waste | Discovered new exit (range 10) 29629 | -5/Waste | EMP discharged 29629 | -5/Waste | System corruption reached 10% 29643 | -5/Waste | Entered Factory 30144 | -5/Factory | Garrison activated, responded to threat 30217 | -5/Factory | Self-destructed Last Messages --------------- 30213_ Penetrated by Slug. 30213_ Mic. Fission Core destroyed. 30213_ U-05 Engineer lays Concrete. 30215_ Dropped Vortex Trap. 30216_ System corrupted: Energy discharge (-1). 30216_ U-05 Engineer lays Concrete. 30216_ Installed Vortex Trap. 30216_ Penetrated by Slug. 30216_ U-05 Engineer destroyed. 30216_ Penetrated by Slug. 30217_ U-05 Engineer lays Concrete. 30217_ Triggered Vortex Trap. 30217_ A wave of accelerated entropy washes over the area. 30217_ Centrium Heavy Treads destroyed. 30217_ Destroyed Centrium Heavy Treads. 30217_ Centrium Medium Armor Plating destroyed. 30217_ Destroyed Centrium Medium Armor Plating. 30217_ H-66 Slayer destroyed. 30217_ ALERT: Garrison Access compromised, dispatching multiple assault carriers. Map ----- +----------------------------------------------------+ | ?????????????????????????????????????????????????? | | ?????????????????????????????????????????????????? | | ?????????????????????????????????????????????????? | | ?????????????????????????????????????????????????? | | ?????????????????????????????????????????????????? | | ?????????????????????????????????????????????????" | | ???????????????????????????????????????????????? | | ???????????????????????????????????????????????""" | | ???????????????????????????????????????????#??? | | ???????????????????????????????????????????# """" | | ?????????????????????????#?????????????????# | | ????????????????????????? ?????????????????# """" | | ?????????????????? ??????!?????????????????# | | ?????????????????# ?????!?????????????????# """" | | ?????????????????# ??? !]???#????????????# | | ?????????????????+ ?? ?? #????????????# | | ?????????????????# """ """ #????????????######" | | ?????????????????# k""" """ #?????? #??????#### | | ?????????????????# k""" """ #??? #??????# " | | ?????????????????# #??? #??????### | | ?????????????????# = ##"" #???????## | | ?????????????????# "" ##"F ######### | | ?????????????????# "" ##""" # | | ??????????????# ###; ;;;;;;;;;;#""" # | | ??????????????# [%[ ; ; ?# | | ??????????????# % @ ;;;;#""#+#??# """ """ | | ????????????? + s #??# """ """ | | ??????????????# %s ! = ![ ##?# """ """ | | ??????????????# s s = ! =[%! ;#?# | | ??????????????##### | ![!!| ##?# ! | | ??????????????????# =! u############# | | ?????????????????#; g | | ?????????????????#; % | | ?????????????????## !!! | | ??????????????????# !!!! | | ????????????????? ; %!!!o * | | ???????????????? # ##;;#+##########;##/######### | | ???????????????? # ? ?????????# #??? | | ??????????????????#?# "" ?????????# #??? " | | ????????????????????" """??????????# ! #??? " | | ??????????????????? # ?????????????# #??? " | | ???????????????????????????????????# #?? | | ???????????????????????????????????# #?? ? | | ???????????????????????????????????# #?? ? | | ???????????????????????????????????# #?? ? | | ???????????????????????????????????# #??? ? | | ???????????????????????????????????##########????? | | ?????????????????????????????????????????????????? | | ?????????????????????????????????????????????????? | | ?????????????????????????????????????????????????? | +----------------------------------------------------+ Best States ------------- Heat Dissipation 103 Energy Generation 25 Energy Capacity 350 Matter Stores 300 Matter Capacity 300 Sight Range 16 Robot Scan Range 16 Terrain Scan Density 10 Armor Coverage 675 Resistance: TH 25 Evasion (%) 40 Core Analysis 6 Recoil Reduction 4 Offensive Hacking 24 Relay Coupler Types 1 Relay Coupler Value 25 Authchip Count 2 Trap Extractor Capacity 4 Item Schematics ----------------- Lgt. Treads | -10/Materials | Hacked Datajack | -9/Materials | Scanalyzed Mic. Nuclear Core | -9/Storage | Hacked Gatling Laser | -9/Recycling | Hacked Imp. Propulsion Shielding | -9/Recycling | Hacked Hvy. Assault Rifle | -9/Recycling | Hacked Robot Schematics ------------------ M-13 Machinist | -10/Materials | Hacked Fabricated ------------ Nothing Repaired ---------- Lgt. Treads | 2% | -9/Materials Lgt. Treads | 10% | -9/Materials Hvy. Ion Engine | 48% | -9/Storage Imp. Treads | 65% | -9/Storage Alien Tech Used ----------------- None Achievements -------------- None Challenges ------------ None Game ------ Seed RiotHeartProjector Manual? 0 Play Time 02:51:19 Cumulative 934.3 hours Start 2025.06.18 @ 00:55:51 End 2025.06.19 @ 00:34:12 Sessions 4 Manual Loads 0 Difficulty Rogue Special Mode None Game No. 489 Rogue 489 Adventurer 0 Explorer 0 Win Type - Total 23 Types 10/4/3/0/1/1/2/2/0/0 Lore% 85 Gallery% 86 Achievement% 83 Wizard Run 0 Options --------- Layout 0 ASCII 0 Keyboard 0 Movement Numpad Keybinds 0 Fullscreen 2 Font 24/Smallcaps Map View 76x50 Zoom Use 0% Tactical HUD 1 Map Filters NONE Filters SHIFT_HUE(315) Steam 1 RUN: 3617c6b9-cf4b-4d97-9739-7160e99c58b8